[Event "Titled Tuesday Blitz January 03 Late 2023"]
[White "Vega Gutierrez, Sabrina"]
[Black "Kosteniuk, Alexandra"]
[WhiteFideId "2219026"]
[BlackFideId "4128125"]
[WhiteElo "2377"]
[BlackElo "2535"]
[Result "1-0"]
[Round "02"]
[TimeControl "180+2"]
[Date "2023.01.03"]
[WhiteClock "0:00:09"]
[BlackClock "0:00:11"]

1. e4 {[%clk 0:03:00]}  c6 {[%clk 0:02:59]} 2. d4 {[%clk 0:03:00]}  d5 {[%clk 0:02:59]} 3. exd5 {[%clk 0:03:00]}  cxd5 {[%clk 0:02:59]} 4. Bd3 {[%clk 0:03:01]}  Nc6 {[%clk 0:02:59]} 5. c3 {[%clk 0:03:00]}  Nf6 {[%clk 0:02:59]} 6. h3 {[%clk 0:02:51]}  g6 {[%clk 0:02:57]} 7. Nf3 {[%clk 0:02:50]}  Bf5 {[%clk 0:02:56]} 8. Bxf5 {[%clk 0:02:40]}  gxf5 {[%clk 0:02:56]} 9. Bf4 {[%clk 0:02:40]}  Rg8 {[%clk 0:02:53]} 10. O-O {[%clk 0:02:37]}  e6 {[%clk 0:02:51]} 11. Re1 {[%clk 0:02:33]}  Bd6 {[%clk 0:02:50]} 12. Bxd6 {[%clk 0:02:29]}  Qxd6 {[%clk 0:02:49]} 13. Ne5 {[%clk 0:02:27]}  Nd7 {[%clk 0:02:44]} 14. Qe2 {[%clk 0:02:14]}  Ncxe5 {[%clk 0:02:36]} 15. dxe5 {[%clk 0:02:13]}  Qb6 {[%clk 0:02:36]} 16. Na3 {[%clk 0:02:08]}  a6 {[%clk 0:02:26]} 17. c4 {[%clk 0:02:03]}  d4 {[%clk 0:02:22]} 18. Rad1 {[%clk 0:02:03]}  O-O-O {[%clk 0:02:20]} 19. c5 {[%clk 0:01:59]}  Nxc5 {[%clk 0:02:03]} 20. Nc4 {[%clk 0:01:59]}  Qb4 {[%clk 0:02:00]} 21. a3 {[%clk 0:01:40]}  Qb3 {[%clk 0:01:34]} 22. Nd6+ {[%clk 0:01:19]}  Rxd6 {[%clk 0:01:34]} 23. exd6 {[%clk 0:01:18]}  Qd5 {[%clk 0:01:34]} 24. f3 {[%clk 0:01:13]}  Nd7 {[%clk 0:01:08]} 25. Qc2+ {[%clk 0:00:54]}  Qc5 {[%clk 0:00:45]} 26. Qxc5+ {[%clk 0:00:52]}  Nxc5 {[%clk 0:00:45]} 27. Rxd4 {[%clk 0:00:53]}  Kd7 {[%clk 0:00:44]} 28. Rc1 {[%clk 0:00:50]}  e5 {[%clk 0:00:30]} 29. Rd5 {[%clk 0:00:35]}  Ne6 {[%clk 0:00:30]} 30. Rxe5 {[%clk 0:00:32]}  Kxd6 {[%clk 0:00:31]} 31. Rxf5 {[%clk 0:00:31]}  Rg7 {[%clk 0:00:32]} 32. Rd1+ {[%clk 0:00:30]}  Kc6 {[%clk 0:00:32]} 33. Kf2 {[%clk 0:00:28]}  h6 {[%clk 0:00:31]} 34. h4 {[%clk 0:00:28]}  b6 {[%clk 0:00:28]} 35. g3 {[%clk 0:00:24]}  Rh7 {[%clk 0:00:26]} 36. Rfd5 {[%clk 0:00:24]}  a5 {[%clk 0:00:21]} 37. Rd6+ {[%clk 0:00:23]}  Kb5 {[%clk 0:00:22]} 38. R1d5+ {[%clk 0:00:20]}  Kc4 {[%clk 0:00:22]} 39. Rf5 {[%clk 0:00:16]}  b5 {[%clk 0:00:16]} 40. b3+ {[%clk 0:00:13]}  Kxb3 {[%clk 0:00:15]} 41. Rxb5+ {[%clk 0:00:13]}  Ka4 {[%clk 0:00:16]} 42. Rf5 {[%clk 0:00:12]}  Rg7 {[%clk 0:00:14]} 43. Ra6 {[%clk 0:00:12]}  Kxa3 {[%clk 0:00:14]} 44. Raxa5+ {[%clk 0:00:11]}  Kb4 {[%clk 0:00:14]} 45. Ra7 {[%clk 0:00:12]}  Nd8 {[%clk 0:00:13]} 46. Rd7 {[%clk 0:00:11]}  Nc6 {[%clk 0:00:12]} 47. Rdxf7 {[%clk 0:00:11]}  Rg8 {[%clk 0:00:12]} 48. R7f6 {[%clk 0:00:10]}  Nd4 {[%clk 0:00:12]} 49. Rf4 {[%clk 0:00:10]}  Kc5 {[%clk 0:00:12]} 50. Rxh6 {[%clk 0:00:09]}  Ra8 {[%clk 0:00:12]} 51. Rxd4 {[%clk 0:00:10]}  Kxd4 {[%clk 0:00:12]} 52. Re6 {[%clk 0:00:10]}  Ra2+ {[%clk 0:00:11]} 53. Re2 {[%clk 0:00:11]}  Ra1 {[%clk 0:00:12]} 54. g4 {[%clk 0:00:09]}  Rh1 {[%clk 0:00:12]} 55. Kg3 {[%clk 0:00:10]}  Kd3 {[%clk 0:00:11]} 56. Re8 {[%clk 0:00:09]} 1-0


[Site "https://www.chess.com"]

[Event "Titled Tuesday Blitz January 03 Late 2023"]
[White "Goryachkina, Aleksandra"]
[Black "Sreyas Payyappat"]
[WhiteFideId "4147103"]
[BlackFideId "46674969"]
[WhiteElo "2571"]
[BlackElo "2076"]
[Result "1-0"]
[Round "02"]
[TimeControl "180+2"]
[Date "2023.01.03"]
[WhiteClock "0:00:09"]
[BlackClock "0:00:18"]

1. e4 {[%clk 0:03:00]}  c6 {[%clk 0:02:56]} 2. d4 {[%clk 0:02:59]}  d5 {[%clk 0:02:56]} 3. e5 {[%clk 0:02:59]}  Bf5 {[%clk 0:02:56]} 4. Nd2 {[%clk 0:02:59]}  e6 {[%clk 0:02:55]} 5. Nb3 {[%clk 0:02:59]}  c5 {[%clk 0:02:56]} 6. dxc5 {[%clk 0:02:56]}  Bxc5 {[%clk 0:02:56]} 7. Nxc5 {[%clk 0:02:56]}  Qa5+ {[%clk 0:02:57]} 8. c3 {[%clk 0:02:56]}  Qxc5 {[%clk 0:02:56]} 9. Be3 {[%clk 0:02:56]}  Qc8 {[%clk 0:02:56]} 10. f4 {[%clk 0:02:51]}  Nc6 {[%clk 0:02:56]} 11. Nf3 {[%clk 0:02:51]}  Qc7 {[%clk 0:02:55]} 12. Be2 {[%clk 0:02:51]}  f6 {[%clk 0:02:53]} 13. O-O {[%clk 0:02:39]}  fxe5 {[%clk 0:02:50]} 14. Nxe5 {[%clk 0:02:39]}  Nxe5 {[%clk 0:02:49]} 15. fxe5 {[%clk 0:02:38]}  Ne7 {[%clk 0:02:49]} 16. Bb5+ {[%clk 0:02:19]}  Nc6 {[%clk 0:02:48]} 17. Bc5 {[%clk 0:02:18]}  O-O-O {[%clk 0:02:43]} 18. Bxc6 {[%clk 0:01:46]}  Qxc6 {[%clk 0:02:41]} 19. b4 {[%clk 0:01:36]}  b6 {[%clk 0:02:33]} 20. Bd6 {[%clk 0:01:33]}  g5 {[%clk 0:02:30]} 21. a4 {[%clk 0:01:31]}  Qc4 {[%clk 0:02:27]} 22. b5 {[%clk 0:01:22]}  h5 {[%clk 0:02:26]} 23. a5 {[%clk 0:01:21]}  Qxb5 {[%clk 0:02:21]} 24. axb6 {[%clk 0:01:19]}  Qxb6+ {[%clk 0:02:20]} 25. Kh1 {[%clk 0:01:18]}  g4 {[%clk 0:02:19]} 26. Rxf5 {[%clk 0:00:47]}  exf5 {[%clk 0:02:17]} 27. Qxd5 {[%clk 0:00:47]}  a6 {[%clk 0:01:26]} 28. c4 {[%clk 0:00:26]}  Qb7 {[%clk 0:01:23]} 29. Qe6+ {[%clk 0:00:13]}  Rd7 {[%clk 0:01:17]} 30. c5 {[%clk 0:00:13]}  Qb2 {[%clk 0:00:42]} 31. Rd1 {[%clk 0:00:10]}  Qc2 {[%clk 0:00:39]} 32. Qd5 {[%clk 0:00:10]}  Rhd8 {[%clk 0:00:22]} 33. Qc6+ {[%clk 0:00:08]}  Rc7 {[%clk 0:00:18]} 34. Qxc7# {[%clk 0:00:09]} 1-0


[Site "https://www.chess.com"]

[Event "Titled Tuesday Blitz January 03 Late 2023"]
[White "Nazari, Arad"]
[Black "Liu, Casper"]
[WhiteFideId "12577324"]
[BlackFideId "1454153"]
[WhiteElo "2367"]
[BlackElo "2278"]
[Result "1-0"]
[Round "02"]
[TimeControl "180+2"]
[Date "2023.01.03"]
[WhiteClock "0:00:05"]
[BlackClock "0:00:20"]

1. e4 {[%clk 0:03:00]}  d5 {[%clk 0:02:59]} 2. exd5 {[%clk 0:02:58]}  Nf6 {[%clk 0:02:58]} 3. d4 {[%clk 0:02:57]}  Nxd5 {[%clk 0:02:57]} 4. c4 {[%clk 0:02:57]}  Nf6 {[%clk 0:02:57]} 5. Nc3 {[%clk 0:02:50]}  Bg4 {[%clk 0:02:57]} 6. Be2 {[%clk 0:02:47]}  Bxe2 {[%clk 0:02:56]} 7. Ngxe2 {[%clk 0:02:47]}  e6 {[%clk 0:02:57]} 8. O-O {[%clk 0:02:47]}  Bd6 {[%clk 0:02:56]} 9. Qb3 {[%clk 0:02:48]}  b6 {[%clk 0:02:53]} 10. c5 {[%clk 0:02:44]}  bxc5 {[%clk 0:02:49]} 11. dxc5 {[%clk 0:02:44]}  Bxc5 {[%clk 0:02:48]} 12. Rd1 {[%clk 0:02:37]}  Nbd7 {[%clk 0:02:45]} 13. Bg5 {[%clk 0:02:36]}  Bxf2+ {[%clk 0:02:28]} 14. Kh1 {[%clk 0:02:31]}  Bb6 {[%clk 0:02:25]} 15. Qa4 {[%clk 0:02:19]}  Qe7 {[%clk 0:02:17]} 16. Bxf6 {[%clk 0:02:13]}  gxf6 {[%clk 0:02:18]} 17. Ne4 {[%clk 0:02:13]}  O-O-O {[%clk 0:02:08]} 18. Rac1 {[%clk 0:01:56]}  f5 {[%clk 0:02:04]} 19. Nd6+ {[%clk 0:01:03]}  Kb8 {[%clk 0:02:01]} 20. Nc4 {[%clk 0:00:33]}  Nc5 {[%clk 0:01:58]} 21. Qc6 {[%clk 0:00:33]}  Ne4 {[%clk 0:01:18]} 22. Nxb6 {[%clk 0:00:24]}  axb6 {[%clk 0:01:19]} 23. Rf1 {[%clk 0:00:19]}  Rd5 {[%clk 0:01:12]} 24. b4 {[%clk 0:00:12]}  Rhd8 {[%clk 0:01:03]} 25. Nf4 {[%clk 0:00:11]}  Rd1 {[%clk 0:00:39]} 26. h3 {[%clk 0:00:05]}  Ng3+ {[%clk 0:00:38]} 27. Kg1 {[%clk 0:00:04]}  Nxf1 {[%clk 0:00:38]} 28. Rc3 {[%clk 0:00:04]}  Ng3+ {[%clk 0:00:36]} 29. Kh2 {[%clk 0:00:05]}  Ne4 {[%clk 0:00:31]} 30. Ra3 {[%clk 0:00:04]}  Rh1+ {[%clk 0:00:21]} 31. Kxh1 {[%clk 0:00:04]}  Rd1+ {[%clk 0:00:22]} 32. Kh2 {[%clk 0:00:05]}  Rh1+ {[%clk 0:00:20]} 33. Kxh1 {[%clk 0:00:05]}  Kc8 {[%clk 0:00:20]} 34. Ra8# {[%clk 0:00:05]} 1-0


[Site "https://www.chess.com"]

[Event "Titled Tuesday Blitz January 03 Late 2023"]
[White "Saya, Ethan"]
[Black "Kanakaris, Georgios"]
[WhiteFideId "26095181"]
[BlackFideId "4209460"]
[WhiteElo "2181"]
[BlackElo "2391"]
[Result "0-1"]
[Round "02"]
[TimeControl "180+2"]
[Date "2023.01.03"]
[WhiteClock "0:01:41"]
[BlackClock "0:01:28"]

1. d4 {[%clk 0:03:00]}  Nf6 {[%clk 0:02:59]} 2. c4 {[%clk 0:02:57]}  g6 {[%clk 0:03:00]} 3. Nc3 {[%clk 0:02:56]}  Bg7 {[%clk 0:03:00]} 4. e4 {[%clk 0:02:56]}  d6 {[%clk 0:03:00]} 5. Be2 {[%clk 0:02:54]}  O-O {[%clk 0:03:01]} 6. Be3 {[%clk 0:02:54]}  Nc6 {[%clk 0:03:01]} 7. g4 {[%clk 0:02:53]}  e5 {[%clk 0:02:58]} 8. d5 {[%clk 0:02:51]}  Nd4 {[%clk 0:02:57]} 9. g5 {[%clk 0:02:50]}  Nxe2 {[%clk 0:02:46]} 10. gxf6 {[%clk 0:02:32]}  Nxc3 {[%clk 0:02:45]} 11. fxg7 {[%clk 0:02:31]}  Nxd1 {[%clk 0:02:45]} 12. gxf8=Q+ {[%clk 0:02:30]}  Qxf8 {[%clk 0:02:38]} 13. Rxd1 {[%clk 0:02:31]}  f5 {[%clk 0:02:35]} 14. f3 {[%clk 0:02:29]}  Qe7 {[%clk 0:02:17]} 15. Bf2 {[%clk 0:02:20]}  Qg5 {[%clk 0:02:10]} 16. Ne2 {[%clk 0:02:19]}  Qg2 {[%clk 0:02:01]} 17. Rg1 {[%clk 0:02:14]}  Qxf3 {[%clk 0:02:01]} 18. exf5 {[%clk 0:02:15]}  Bxf5 {[%clk 0:01:56]} 19. Ng3 {[%clk 0:01:52]}  Bg4 {[%clk 0:01:41]} 20. Rd2 {[%clk 0:01:49]}  Rf8 {[%clk 0:01:40]} 21. Nf1 {[%clk 0:01:44]}  Qe4+ {[%clk 0:01:33]} 22. Ne3 {[%clk 0:01:43]}  Rxf2 {[%clk 0:01:29]} 23. Kxf2 {[%clk 0:01:39]}  Qf3+ {[%clk 0:01:29]} 24. Ke1 {[%clk 0:01:40]}  Qxe3+ {[%clk 0:01:29]} 25. Kf1 {[%clk 0:01:40]}  Qxd2 {[%clk 0:01:28]} 26. Rxg4 {[%clk 0:01:41]}  Qd1+ {[%clk 0:01:28]} 0-1


[Site "https://www.chess.com"]

[Event "Titled Tuesday Blitz January 03 Late 2023"]
[White "Gatterer, Florian"]
[Black "Zhao, Erick"]
[WhiteFideId "811688"]
[BlackFideId "30946930"]
[WhiteElo "2170"]
[BlackElo "2275"]
[Result "0-1"]
[Round "02"]
[TimeControl "180+2"]
[Date "2023.01.03"]
[WhiteClock "0:00:04"]
[BlackClock "0:01:23"]

1. Nf3 {[%clk 0:03:00]}  b6 {[%clk 0:02:57]} 2. e4 {[%clk 0:02:59]}  Bb7 {[%clk 0:02:58]} 3. Nc3 {[%clk 0:02:59]}  c5 {[%clk 0:02:58]} 4. d4 {[%clk 0:02:58]}  cxd4 {[%clk 0:02:58]} 5. Nxd4 {[%clk 0:02:58]}  g6 {[%clk 0:02:59]} 6. Be3 {[%clk 0:02:54]}  Bg7 {[%clk 0:02:59]} 7. Qd2 {[%clk 0:02:55]}  Nc6 {[%clk 0:02:58]} 8. O-O-O {[%clk 0:02:52]}  Nf6 {[%clk 0:02:38]} 9. f3 {[%clk 0:02:48]}  O-O {[%clk 0:02:38]} 10. h4 {[%clk 0:02:48]}  d5 {[%clk 0:02:13]} 11. Nxc6 {[%clk 0:02:38]}  Bxc6 {[%clk 0:02:14]} 12. Nxd5 {[%clk 0:02:36]}  Nxd5 {[%clk 0:02:01]} 13. exd5 {[%clk 0:02:35]}  Bb7 {[%clk 0:02:02]} 14. h5 {[%clk 0:02:29]}  Rc8 {[%clk 0:01:57]} 15. Bh6 {[%clk 0:02:11]}  Qxd5 {[%clk 0:01:56]} 16. Bxg7 {[%clk 0:01:55]}  Qxd2+ {[%clk 0:01:54]} 17. Rxd2 {[%clk 0:01:52]}  Kxg7 {[%clk 0:01:53]} 18. Rd7 {[%clk 0:01:40]}  Bc6 {[%clk 0:01:53]} 19. Rxe7 {[%clk 0:01:34]}  Kf6 {[%clk 0:01:53]} 20. Rxa7 {[%clk 0:01:22]}  Rfe8 {[%clk 0:01:52]} 21. Bd3 {[%clk 0:01:18]}  Red8 {[%clk 0:01:50]} 22. Ra3 {[%clk 0:01:16]}  b5 {[%clk 0:01:49]} 23. Kb1 {[%clk 0:01:09]}  b4 {[%clk 0:01:46]} 24. Ra6 {[%clk 0:01:08]}  Kg5 {[%clk 0:01:44]} 25. hxg6 {[%clk 0:01:02]}  hxg6 {[%clk 0:01:45]} 26. b3 {[%clk 0:01:02]}  Kf4 {[%clk 0:01:38]} 27. Rb6 {[%clk 0:01:01]}  Kg3 {[%clk 0:01:37]} 28. Rxb4 {[%clk 0:00:55]}  Kxg2 {[%clk 0:01:38]} 29. Re1 {[%clk 0:00:52]}  Bxf3 {[%clk 0:01:36]} 30. Rf4 {[%clk 0:00:48]}  Bd5 {[%clk 0:01:36]} 31. Be4+ {[%clk 0:00:42]}  Bxe4 {[%clk 0:01:35]} 32. Rfxe4 {[%clk 0:00:42]}  Rd2 {[%clk 0:01:34]} 33. R4e2+ {[%clk 0:00:42]}  Rxe2 {[%clk 0:01:34]} 34. Rxe2+ {[%clk 0:00:42]}  Kf3 {[%clk 0:01:34]} 35. Re7 {[%clk 0:00:40]}  f5 {[%clk 0:01:34]} 36. a4 {[%clk 0:00:40]}  g5 {[%clk 0:01:34]} 37. a5 {[%clk 0:00:39]}  g4 {[%clk 0:01:35]} 38. a6 {[%clk 0:00:39]}  g3 {[%clk 0:01:35]} 39. Rg7 {[%clk 0:00:35]}  g2 {[%clk 0:01:35]} 40. b4 {[%clk 0:00:34]}  Rc4 {[%clk 0:01:30]} 41. c3 {[%clk 0:00:30]}  Rxc3 {[%clk 0:01:31]} 42. Kb2 {[%clk 0:00:30]}  Rc6 {[%clk 0:01:30]} 43. a7 {[%clk 0:00:20]}  Ra6 {[%clk 0:01:28]} 44. Kc3 {[%clk 0:00:16]}  Rxa7 {[%clk 0:01:27]} 45. Rg6 {[%clk 0:00:16]}  f4 {[%clk 0:01:26]} 46. b5 {[%clk 0:00:16]}  Ra8 {[%clk 0:01:25]} 47. b6 {[%clk 0:00:16]}  Rb8 {[%clk 0:01:23]} 48. Kd4 {[%clk 0:00:15]}  Rxb6 {[%clk 0:01:23]} 49. Rxg2 {[%clk 0:00:04]}  Kxg2 {[%clk 0:01:23]} 0-1


[Site "https://www.chess.com"]

[Event "Titled Tuesday Blitz January 03 Late 2023"]
[White "Horcajuelo Rocamora, Martin"]
[Black "Rostomyan, Mikayel"]
[WhiteFideId "24573027"]
[BlackFideId "13313754"]
[WhiteElo "2107"]
[BlackElo "2222"]
[Result "1-0"]
[Round "02"]
[TimeControl "180+2"]
[Date "2023.01.03"]
[WhiteClock "0:00:08"]
[BlackClock "0:00:04"]

1. e4 {[%clk 0:03:00]}  c5 {[%clk 0:02:59]} 2. Nf3 {[%clk 0:02:49]}  Nc6 {[%clk 0:02:59]} 3. d4 {[%clk 0:02:49]}  cxd4 {[%clk 0:03:00]} 4. Nxd4 {[%clk 0:02:50]}  g6 {[%clk 0:03:00]} 5. c3 {[%clk 0:02:47]}  Bg7 {[%clk 0:02:58]} 6. Be3 {[%clk 0:02:48]}  Nf6 {[%clk 0:02:58]} 7. Nd2 {[%clk 0:02:47]}  O-O {[%clk 0:02:58]} 8. Bc4 {[%clk 0:02:46]}  Na5 {[%clk 0:02:57]} 9. Bd3 {[%clk 0:02:46]}  d5 {[%clk 0:02:57]} 10. e5 {[%clk 0:02:46]}  Nd7 {[%clk 0:02:57]} 11. f4 {[%clk 0:02:46]}  Nc5 {[%clk 0:02:57]} 12. Bc2 {[%clk 0:02:45]}  Nc4 {[%clk 0:02:57]} 13. Nxc4 {[%clk 0:02:44]}  dxc4 {[%clk 0:02:58]} 14. O-O {[%clk 0:02:44]}  a6 {[%clk 0:02:53]} 15. Qe2 {[%clk 0:02:43]}  b5 {[%clk 0:02:31]} 16. Nc6 {[%clk 0:02:42]}  Qc7 {[%clk 0:02:27]} 17. Bxc5 {[%clk 0:02:41]}  Qxc6 {[%clk 0:02:24]} 18. Bxe7 {[%clk 0:02:41]}  Re8 {[%clk 0:02:23]} 19. Be4 {[%clk 0:02:41]}  Qb6+ {[%clk 0:02:23]} 20. Kh1 {[%clk 0:02:39]}  Ra7 {[%clk 0:01:55]} 21. Bd6 {[%clk 0:02:25]}  Bb7 {[%clk 0:01:50]} 22. Bxb7 {[%clk 0:02:23]}  Rxb7 {[%clk 0:01:51]} 23. Rad1 {[%clk 0:02:21]}  Rd7 {[%clk 0:01:46]} 24. Qf3 {[%clk 0:02:16]}  a5 {[%clk 0:01:36]} 25. Qd5 {[%clk 0:02:12]}  Red8 {[%clk 0:01:32]} 26. Rd4 {[%clk 0:02:08]}  Rxd6 {[%clk 0:01:26]} 27. exd6 {[%clk 0:02:04]}  Bxd4 {[%clk 0:01:26]} 28. cxd4 {[%clk 0:02:03]}  Rxd6 {[%clk 0:01:21]} 29. Qe5 {[%clk 0:02:01]}  Qxd4 {[%clk 0:01:04]} 30. Qxb5 {[%clk 0:02:00]}  Qxf4 {[%clk 0:01:03]} 31. Re1 {[%clk 0:01:25]}  Qe4 {[%clk 0:00:29]} 32. Rg1 {[%clk 0:01:09]}  Rd2 {[%clk 0:00:26]} 33. Qb8+ {[%clk 0:00:49]}  Kg7 {[%clk 0:00:26]} 34. Qb5 {[%clk 0:00:40]}  Qd4 {[%clk 0:00:18]} 35. h3 {[%clk 0:00:15]}  Rxb2 {[%clk 0:00:17]} 36. Qxa5 {[%clk 0:00:15]}  c3 {[%clk 0:00:16]} 37. Rf1 {[%clk 0:00:15]}  c2 {[%clk 0:00:05]} 38. Qc7 {[%clk 0:00:14]}  Qd5 {[%clk 0:00:03]} 39. Qc3+ {[%clk 0:00:13]}  Kh6 {[%clk 0:00:03]} 40. Qxb2 {[%clk 0:00:14]}  Qd3 {[%clk 0:00:03]} 41. Qc1+ {[%clk 0:00:14]}  Kg7 {[%clk 0:00:03]} 42. Re1 {[%clk 0:00:13]}  h5 {[%clk 0:00:03]} 43. Kh2 {[%clk 0:00:14]}  Kh7 {[%clk 0:00:03]} 44. Re3 {[%clk 0:00:13]}  Qd6+ {[%clk 0:00:02]} 45. g3 {[%clk 0:00:14]}  Qc5 {[%clk 0:00:02]} 46. Re2 {[%clk 0:00:12]}  h4 {[%clk 0:00:02]} 47. Qxc2 {[%clk 0:00:11]}  hxg3+ {[%clk 0:00:02]} 48. Kxg3 {[%clk 0:00:12]}  Qd6+ {[%clk 0:00:02]} 49. Kg2 {[%clk 0:00:12]}  Qd5+ {[%clk 0:00:03]} 50. Kh2 {[%clk 0:00:12]}  Qg5 {[%clk 0:00:03]} 51. Rg2 {[%clk 0:00:11]}  Qf4+ {[%clk 0:00:04]} 52. Rg3 {[%clk 0:00:11]}  Qe5 {[%clk 0:00:04]} 53. Qf2 {[%clk 0:00:11]}  f5 {[%clk 0:00:03]} 54. Kg2 {[%clk 0:00:10]}  Qd5+ {[%clk 0:00:03]} 55. Rf3 {[%clk 0:00:10]}  g5 {[%clk 0:00:03]} 56. Kh2 {[%clk 0:00:10]}  Qe5+ {[%clk 0:00:04]} 57. Kh1 {[%clk 0:00:10]}  Qd5 {[%clk 0:00:03]} 58. Kg1 {[%clk 0:00:10]}  Qd1+ {[%clk 0:00:03]} 59. Qf1 {[%clk 0:00:10]}  Qd4+ {[%clk 0:00:03]} 60. Kh2 {[%clk 0:00:10]}  Qe5+ {[%clk 0:00:03]} 61. Kg2 {[%clk 0:00:10]}  Qd5 {[%clk 0:00:03]} 62. Qf2 {[%clk 0:00:08]}  Kg6 {[%clk 0:00:02]} 63. Qg3 {[%clk 0:00:08]}  Qxa2+ {[%clk 0:00:01]} 64. Rf2 {[%clk 0:00:08]}  Qd5+ {[%clk 0:00:01]} 65. Qf3 {[%clk 0:00:08]}  Qd6 {[%clk 0:00:01]} 66. Re2 {[%clk 0:00:08]}  Kh6 {[%clk 0:00:02]} 67. Qe3 {[%clk 0:00:08]}  Qd5+ {[%clk 0:00:02]} 68. Kh2 {[%clk 0:00:08]}  Qd6+ {[%clk 0:00:03]} 69. Kg1 {[%clk 0:00:08]}  Qd1+ {[%clk 0:00:03]} 70. Re1 {[%clk 0:00:07]}  Qd7 {[%clk 0:00:02]} 71. Qe6+ {[%clk 0:00:07]}  Qxe6 {[%clk 0:00:03]} 72. Rxe6+ {[%clk 0:00:08]}  Kh5 {[%clk 0:00:04]} 73. Kg2 {[%clk 0:00:08]}  Kh4 {[%clk 0:00:04]} 74. Rh6# {[%clk 0:00:08]} 1-0


[Site "https://www.chess.com"]

[Event "Titled Tuesday Blitz January 03 Late 2023"]
[White "Corredor Castellanos, Camilo"]
[Black "Richter, Paul"]
[WhiteFideId "4425871"]
[BlackFideId "2046350"]
[WhiteElo "1957"]
[BlackElo "2171"]
[Result "1-0"]
[Round "02"]
[TimeControl "180+2"]
[Date "2023.01.03"]
[WhiteClock "0:00:22"]
[BlackClock "0:00:01"]

1. d4 {[%clk 0:03:00]}  Nf6 {[%clk 0:02:59]} 2. c4 {[%clk 0:03:00]}  g6 {[%clk 0:02:59]} 3. Nc3 {[%clk 0:03:00]}  Bg7 {[%clk 0:03:00]} 4. e4 {[%clk 0:03:01]}  d6 {[%clk 0:03:00]} 5. Nf3 {[%clk 0:03:00]}  O-O {[%clk 0:03:00]} 6. h3 {[%clk 0:03:00]}  Na6 {[%clk 0:03:00]} 7. Be3 {[%clk 0:03:00]}  e5 {[%clk 0:03:01]} 8. d5 {[%clk 0:03:00]}  Nc5 {[%clk 0:03:00]} 9. Nd2 {[%clk 0:03:01]}  a5 {[%clk 0:03:00]} 10. g4 {[%clk 0:02:58]}  h5 {[%clk 0:02:59]} 11. f3 {[%clk 0:02:50]}  Nh7 {[%clk 0:02:57]} 12. h4 {[%clk 0:02:45]}  hxg4 {[%clk 0:02:47]} 13. fxg4 {[%clk 0:02:44]}  f5 {[%clk 0:02:47]} 14. g5 {[%clk 0:02:12]}  Qe8 {[%clk 0:02:13]} 15. Bxc5 {[%clk 0:01:52]}  dxc5 {[%clk 0:02:12]} 16. Qe2 {[%clk 0:01:51]}  Bd7 {[%clk 0:02:00]} 17. O-O-O {[%clk 0:01:49]}  Ra6 {[%clk 0:01:47]} 18. Bh3 {[%clk 0:01:32]}  Qe7 {[%clk 0:01:45]} 19. Rdg1 {[%clk 0:01:28]}  Rb6 {[%clk 0:01:27]} 20. a3 {[%clk 0:01:03]}  Ra6 {[%clk 0:01:25]} 21. Nf3 {[%clk 0:01:02]}  Qf7 {[%clk 0:01:23]} 22. h5 {[%clk 0:00:59]}  fxe4 {[%clk 0:01:08]} 23. hxg6 {[%clk 0:00:54]}  Rxg6 {[%clk 0:01:07]} 24. Bxd7 {[%clk 0:00:49]}  exf3 {[%clk 0:00:42]} 25. Qh2 {[%clk 0:00:38]}  Qf4+ {[%clk 0:00:18]} 26. Qxf4 {[%clk 0:00:38]}  Rxf4 {[%clk 0:00:19]} 27. Be6+ {[%clk 0:00:35]}  Kh8 {[%clk 0:00:19]} 28. Rxh7+ {[%clk 0:00:35]}  Kxh7 {[%clk 0:00:18]} 29. Rh1+ {[%clk 0:00:35]}  Bh6 {[%clk 0:00:19]} 30. gxh6 {[%clk 0:00:34]}  Rxh6 {[%clk 0:00:19]} 31. Rxh6+ {[%clk 0:00:31]}  Kxh6 {[%clk 0:00:20]} 32. Bh3 {[%clk 0:00:31]}  Kg5 {[%clk 0:00:19]} 33. Kd2 {[%clk 0:00:31]}  Kh4 {[%clk 0:00:19]} 34. Bf1 {[%clk 0:00:32]}  Kg3 {[%clk 0:00:17]} 35. Ke3 {[%clk 0:00:32]}  b6 {[%clk 0:00:14]} 36. b3 {[%clk 0:00:32]}  f2 {[%clk 0:00:13]} 37. Ne4+ {[%clk 0:00:29]}  Kh2 {[%clk 0:00:13]} 38. Nd2 {[%clk 0:00:28]}  Kg1 {[%clk 0:00:13]} 39. a4 {[%clk 0:00:27]}  Rf8 {[%clk 0:00:09]} 40. Bd3 {[%clk 0:00:26]}  Rf4 {[%clk 0:00:06]} 41. Nf3+ {[%clk 0:00:26]}  Kg2 {[%clk 0:00:06]} 42. Nxe5 {[%clk 0:00:25]}  f1=Q {[%clk 0:00:06]} 43. Bxf1+ {[%clk 0:00:25]}  Rxf1 {[%clk 0:00:06]} 44. Kd3 {[%clk 0:00:23]}  Re1 {[%clk 0:00:06]} 45. Nc6 {[%clk 0:00:22]}  Rh1 {[%clk 0:00:05]} 46. Nd8 {[%clk 0:00:21]}  Rh7 {[%clk 0:00:05]} 47. Ne6 {[%clk 0:00:21]}  Kg3 {[%clk 0:00:05]} 48. Ke4 {[%clk 0:00:20]}  Kg4 {[%clk 0:00:05]} 49. Kd3 {[%clk 0:00:21]}  Kf5 {[%clk 0:00:04]} 50. Nd8 {[%clk 0:00:21]}  Ke5 {[%clk 0:00:03]} 51. Nc6+ {[%clk 0:00:21]}  Kd6 {[%clk 0:00:04]} 52. Kc3 {[%clk 0:00:22]}  Rh3+ {[%clk 0:00:04]} 53. Kb2 {[%clk 0:00:22]}  Rg3 {[%clk 0:00:04]} 54. Ka3 {[%clk 0:00:22]}  Rg6 {[%clk 0:00:03]} 55. Na7 {[%clk 0:00:22]}  Ke5 {[%clk 0:00:01]} 56. Nb5 {[%clk 0:00:22]} 1-0


[Site "https://www.chess.com"]

[Event "Titled Tuesday Blitz January 03 Late 2023"]
[White "Chor, Kevin"]
[Black "Zampronha, Wladimir Camilo"]
[WhiteFideId "2090740"]
[BlackFideId "2103087"]
[WhiteElo "1944"]
[BlackElo "2176"]
[Result "1-0"]
[Round "02"]
[TimeControl "180+2"]
[Date "2023.01.03"]
[WhiteClock "0:00:38"]
[BlackClock "0:00:47"]

1. e4 {[%clk 0:03:00]}  c5 {[%clk 0:02:59]} 2. Nf3 {[%clk 0:03:00]}  e6 {[%clk 0:02:59]} 3. d4 {[%clk 0:03:00]}  cxd4 {[%clk 0:03:00]} 4. Nxd4 {[%clk 0:03:01]}  Nc6 {[%clk 0:03:01]} 5. Nc3 {[%clk 0:03:00]}  Qc7 {[%clk 0:03:01]} 6. Be3 {[%clk 0:02:59]}  a6 {[%clk 0:03:01]} 7. Be2 {[%clk 0:02:54]}  Nf6 {[%clk 0:03:00]} 8. O-O {[%clk 0:02:53]}  Bb4 {[%clk 0:03:00]} 9. Bd3 {[%clk 0:02:48]}  h5 {[%clk 0:02:47]} 10. Nxc6 {[%clk 0:02:38]}  bxc6 {[%clk 0:02:45]} 11. f3 {[%clk 0:02:37]}  Bd6 {[%clk 0:02:41]} 12. f4 {[%clk 0:02:23]}  Ng4 {[%clk 0:02:39]} 13. Qe2 {[%clk 0:02:18]}  Rb8 {[%clk 0:02:22]} 14. b3 {[%clk 0:02:02]}  Qa5 {[%clk 0:02:21]} 15. Bd2 {[%clk 0:01:56]}  Bb4 {[%clk 0:02:14]} 16. Nb1 {[%clk 0:01:43]}  Qc5+ {[%clk 0:02:06]} 17. Kh1 {[%clk 0:01:42]}  Bxd2 {[%clk 0:02:06]} 18. Nxd2 {[%clk 0:01:42]}  Qe3 {[%clk 0:01:55]} 19. Nc4 {[%clk 0:01:35]}  Qxe2 {[%clk 0:01:53]} 20. Bxe2 {[%clk 0:01:36]}  d5 {[%clk 0:01:49]} 21. Nd6+ {[%clk 0:01:21]}  Ke7 {[%clk 0:01:48]} 22. Nxc8+ {[%clk 0:01:19]}  Rbxc8 {[%clk 0:01:43]} 23. Bxa6 {[%clk 0:01:20]}  Ra8 {[%clk 0:01:40]} 24. Bd3 {[%clk 0:01:20]}  Ra3 {[%clk 0:01:31]} 25. Kg1 {[%clk 0:01:06]}  Rha8 {[%clk 0:01:30]} 26. exd5 {[%clk 0:00:52]}  cxd5 {[%clk 0:01:24]} 27. Rfe1 {[%clk 0:00:52]}  Rxa2 {[%clk 0:01:17]} 28. Rad1 {[%clk 0:00:53]}  Kf6 {[%clk 0:01:02]} 29. h3 {[%clk 0:00:48]}  Nh6 {[%clk 0:01:02]} 30. Re5 {[%clk 0:00:49]}  Nf5 {[%clk 0:00:54]} 31. Bxf5 {[%clk 0:00:44]}  exf5 {[%clk 0:00:55]} 32. Rdxd5 {[%clk 0:00:45]}  Rxc2 {[%clk 0:00:53]} 33. Rxf5+ {[%clk 0:00:45]}  Ke6 {[%clk 0:00:47]} 34. Rfe5+ {[%clk 0:00:38]}  Kf6 {[%clk 0:00:47]} 35. Rd6# {[%clk 0:00:38]} 1-0


[Site "https://www.chess.com"]